bitfinex-derivatives/quotes_ETHF0:USTF0_20260222
["timestamp","ask_amount","ask_price","bid_price","bid_amount"]
[1771766362381,0.59450384,1967.5,1966.9,0.0051519]
[1771766362580,0.59450384,1967.3,1966.2,0.58327285]
[1771766363483,0.59450384,1967.3,1966.2,0.58702439]
[1771766364081,0.59450384,1967.2,1966.2,0.58702439]
[1771766366885,0.59869669,1967.5,1966.4,0.58327285]
[1771766375596,0.00419285,1967.5,1966.6,0.58327285]
[1771766375800,0.00419285,1967.5,1966.7,0.58327285]
[1771766376100,0.59869669,1967.5,1966.7,0.58327285]
[1771766376298,0.00419285,1967.5,1966.7,0.58327285]
[1771766376495,0.59450384,1968.3,1967.0,0.58327285]
[1771766376694,0.25408,1968.5,1967.0,0.58327285]
[1771766376695,0.59450384,1968.1,1967.0,0.58327285]
[1771766377601,0.60004891,1968.1,1967.1,0.58327285]
[1771766385918,5.76648073,1968.0,1966.5,0.81707452]
[1771766386206,0.56251843,1967.8,1966.6,0.56275452]
[1771766386412,0.56251843,1967.6,1966.6,0.56275452]
[1771766404126,0.56251843,1967.4,1966.4,7.99718512]
[1771766404325,0.56251843,1967.2,1966.3,0.56275452]
[1771766405825,0.56251843,1967.0,1966.2,0.00375154]
[1771766407535,0.56251843,1967.0,1966.2,0.56650606]
[1771766413335,0.56251843,1967.0,1966.2,0.00375154]
[1771766415539,0.59221128,1966.8,1966.2,0.00375154]
[1771766416239,0.59221128,1966.6,1965.6,0.55130656]
[1771766416536,0.59221128,1966.4,1965.6,0.55130656]
[1771766417334,0.59815369,1966.4,1965.6,0.55586407]
[1771766427651,0.00594241,1966.4,1965.6,0.55586407]
[1771766432553,0.00594241,1966.4,1965.7,0.55130656]
[1771766433456,0.00594241,1966.4,1965.8,0.55130656]
[1771766434757,0.00594241,1966.4,1965.8,8.54849168]
[1771766435057,0.00594241,1966.4,1965.9,0.55130656]
[1771766438558,0.58324573,1967.1,1966.2,0.56290556]
[1771766439448,0.5873283,1967.1,1966.2,0.56290556]
[1771766441261,0.00408257,1967.1,1966.2,0.56290556]
[1771766441560,12.68388529,1968.0,1966.4,0.56290556]
[1771766441561,0.58324573,1967.9,1966.4,0.56290556]
[1771766441761,0.58324573,1967.7,1966.4,0.56290556]
[1771766441960,0.58324573,1967.5,1966.6,0.56290556]
[1771766442352,0.58711542,1967.5,1966.6,0.56290556]
[1771766445861,0.00386969,1967.5,1966.8,0.56290556]
[1771766447368,0.58324573,1968.1,1967.0,0.56290556]
[1771766448567,0.5872774,1968.1,1967.0,0.56813149]
[1771766456169,0.58324573,1967.9,1967.0,0.00522593]
[1771766456565,0.58324573,1967.8,1967.0,0.00522593]
[1771766456764,0.58324573,1967.8,1967.0,0.56813149]
[1771766463171,0.58324573,1967.8,1967.0,0.00522593]
[1771766463773,0.58324573,1967.8,1967.0,0.56813149]
[1771766466479,0.58324573,1967.6,1967.0,0.56813149]
[1771766467680,0.58324573,1967.6,1967.0,0.00522593]
[1771766469381,0.5785805,1967.4,1967.0,0.00522593]
[1771766476789,0.5785805,1967.4,1967.0,0.56519158]
[1771766477990,0.5785805,1967.4,1967.0,0.00522593]
[1771766482094,0.5785805,1967.4,1967.0,0.56519158]
[1771766484495,0.5785805,1967.4,1967.0,0.00522593]
[1771766487496,0.59745959,1967.2,1966.3,0.55996565]
[1771766487698,0.49626882,1967.0,1966.3,0.55996565]
[1771766488399,0.49626882,1967.0,1966.3,0.56615351]
[1771766506018,0.49626882,1967.0,1966.3,0.00618786]
[1771766506707,0.49592072,1966.8,1966.0,0.5862117]
[1771766507714,0.49592072,1966.8,1966.0,0.59056426]
[1771766509413,0.49849943,1966.6,1966.0,0.00435256]
[1771766509719,0.50291528,1966.6,1965.9,0.5862117]
[1771766510216,0.49849943,1966.4,1965.9,0.5862117]
[1771766510817,0.49849943,1966.4,1965.9,0.59042527]
[1771766511019,0.49849943,1966.4,1965.9,0.00421357]
[1771766511321,0.49849943,1966.4,1965.6,0.5862117]
[1771766512518,0.49849943,1966.4,1965.6,0.59257156]
[1771766518819,0.00441585,1966.6,1965.6,0.59257156]
[1771766519024,0.48030744,1966.6,1965.6,0.59257156]
[1771766519626,0.45832902,1966.4,1965.6,0.59257156]
[1771766533133,0.50319209,1966.2,1965.6,0.59257156]
[1771766535424,0.48957034,1966.5,1965.6,0.59257156]
[1771766535627,0.00441585,1966.6,1965.6,0.59257156]
[1771766535628,0.49398619,1966.6,1965.6,0.59257156]
[1771766535830,0.47899356,1966.5,1965.6,0.59257156]
[1771766536033,0.49398619,1966.6,1965.6,0.59257156]
[1771766536228,0.47899532,1966.5,1965.6,0.59257156]
[1771766536433,0.49398619,1966.6,1965.6,0.59257156]
[1771766536633,0.47921105,1966.5,1965.6,0.59257156]
[1771766536835,0.49398619,1966.6,1965.6,0.59257156]
[1771766537033,0.47921061,1966.5,1965.6,0.59257156]
[1771766537234,0.49398619,1966.6,1965.6,0.59257156]
[1771766537435,0.47931434,1966.5,1965.6,0.59257156]
[1771766537737,0.49398619,1966.6,1965.6,0.59257156]
[1771766538037,0.47931177,1966.5,1965.6,0.59257156]
[1771766538240,0.49398619,1966.6,1965.6,0.59257156]
[1771766538536,0.47941378,1966.5,1965.6,0.59257156]
[1771766538738,0.49398619,1966.6,1965.6,0.59257156]
[1771766538938,0.47941383,1966.5,1965.6,0.59257156]
[1771766539137,0.49398619,1966.6,1965.6,0.59257156]
[1771766539338,0.47956889,1966.5,1965.6,0.59257156]
[1771766539538,0.49398619,1966.6,1965.6,0.59257156]
[1771766539841,0.47952694,1966.5,1965.6,0.59257156]
[1771766540137,0.49398619,1966.6,1965.6,0.59257156]
[1771766540437,0.47953108,1966.5,1965.6,0.59257156]
[1771766540637,0.49398619,1966.6,1965.6,0.59257156]
[1771766540838,0.47949397,1966.5,1965.6,0.59257156]
[1771766541040,0.49398619,1966.6,1965.6,0.59257156]
[1771766541239,0.47948837,1966.5,1965.6,0.59257156]
[1771766541439,0.49398619,1966.6,1965.6,0.59257156]
[1771766541640,0.47945222,1966.5,1965.6,0.59257156]
[1771766541841,0.49398619,1966.6,1965.6,0.59257156]
[1771766542041,0.47944532,1966.5,1965.6,0.59257156]
[1771766542241,0.49398619,1966.6,1965.6,0.59257156]
[1771766542443,0.47937897,1966.5,1965.6,0.59257156]
[1771766542740,0.49398619,1966.6,1965.6,0.59257156]
[1771766542940,0.479242,1966.5,1965.6,0.59257156]
[1771766543134,0.49398619,1966.6,1965.6,0.59257156]
[1771766543333,0.47923813,1966.5,1965.6,0.59257156]
[1771766543636,0.49398619,1966.6,1965.6,0.59257156]
[1771766543834,0.47919395,1966.5,1965.6,0.59257156]
[1771766544034,0.49398619,1966.6,1965.6,0.59257156]
[1771766544244,0.47919397,1966.5,1965.6,0.59257156]
[1771766544443,0.49398619,1966.6,1965.6,0.59257156]
[1771766544639,0.47917307,1966.5,1965.6,0.59257156]
[1771766544839,0.49398619,1966.6,1965.6,0.59257156]
[1771766545039,0.47917153,1966.5,1965.6,0.59257156]
[1771766545336,0.49398619,1966.6,1965.6,0.59257156]
[1771766545536,0.47916518,1966.5,1965.6,0.59257156]
[1771766545736,0.49398619,1966.6,1965.7,0.57890159]
[1771766545936,0.47916348,1966.5,1965.7,0.57890159]
[1771766546136,0.49398619,1966.6,1965.7,0.57890159]
[1771766546342,0.47917634,1966.5,1965.7,0.57890159]
[1771766546538,0.49398619,1966.6,1965.7,0.57890159]
[1771766546737,1.0036475,1966.5,1965.7,0.57890159]
[1771766546943,0.5245501,1966.5,1965.7,0.57890159]
[1771766550255,0.52590325,1966.3,1965.7,0.57890159]
[1771766558663,0.52590325,1966.3,1965.6,0.00635986]
[1771766558869,0.52590325,1966.3,1965.2,0.57089165]
[1771766558870,0.52372968,1966.1,1965.2,0.57089165]
[1771766559168,4.22469401,1966.3,1965.2,0.57089165]
[1771766559169,0.52372968,1965.9,1965.2,0.57089165]
[1771766559368,0.52358707,1965.7,1965.2,0.57089165]
[1771766559870,0.52358707,1965.7,1965.2,0.57563242]
[1771766577580,0.51523492,1966.0,1965.2,0.57563242]
[1771766579284,0.47717144,1965.9,1965.2,0.57563242]
[1771766579480,0.52435202,1966.1,1965.2,0.57563242]
[1771766583281,0.47807507,1966.0,1965.2,0.57563242]
[1771766583482,0.52963583,1965.9,1965.2,0.57563242]
[1771766588287,1.00370916,1965.8,1965.2,0.57563242]
[1771766588486,0.5240054,1965.8,1965.2,0.57563242]
[1771766589788,0.52344703,1965.6,1965.2,0.57563242]
[1771766590890,0.52344703,1966.0,1965.2,0.57563242]
[1771766591090,0.52344703,1965.8,1965.2,0.57563242]
[1771766591393,1.00309232,1965.7,1965.2,0.57563242]
[1771766591588,0.52344703,1965.7,1965.2,0.57563242]
[1771766592889,0.52231929,1965.8,1965.2,0.57563242]
[1771766593790,0.47963852,1965.7,1965.2,0.57563242]
[1771766593988,0.52419066,1965.7,1965.2,0.57563242]
[1771766594696,0.52406429,1966.0,1965.2,0.57563242]
[1771766594897,6.32083655,1965.9,1965.2,0.57563242]
[1771766595095,0.47963839,1965.8,1965.2,0.57563242]
[1771766595394,0.52406429,1966.0,1965.2,0.57563242]
[1771766595594,6.84636955,1965.9,1965.2,0.57563242]
[1771766595795,0.4796394,1965.8,1965.2,0.57563242]
[1771766596993,1.00515631,1965.8,1965.2,0.57563242]
[1771766597194,0.52551691,1965.8,1965.2,0.57563242]
[1771766597595,0.52691122,1965.6,1965.2,0.57563242]
[1771766599597,0.52691122,1965.6,1965.1,0.54885844]
[1771766600098,0.52691122,1965.6,1964.7,7.98194607]
[1771766600297,0.52691122,1965.6,1964.8,0.54885844]
[1771766600697,0.52691122,1965.6,1964.8,0.55392653]
[1771766601897,0.5048233,1965.4,1964.8,0.55392653]
[1771766602996,0.5048233,1965.4,1964.8,0.00506809]
[1771766603298,0.5048233,1965.7,1964.7,0.54885844]
[1771766603502,0.50217388,1965.9,1964.8,0.54885844]
[1771766603800,0.47954768,1965.8,1964.8,0.54885844]
[1771766604000,0.50217388,1965.9,1964.9,0.54885844]
[1771766604197,0.98173854,1965.8,1964.9,0.5535197]
[1771766604396,0.50217388,1965.8,1964.9,0.5535197]
[1771766607101,0.49359763,1965.6,1964.9,0.5535197]
[1771766612612,0.50146026,1965.4,1964.9,0.00466126]
[1771766613211,0.50146026,1965.4,1964.9,0.5535197]
[1771766615116,0.4976325,1965.5,1964.9,0.5535197]
[1771766615313,0.97679311,1965.4,1964.9,0.5535197]
[1771766615610,0.49714764,1965.6,1964.9,0.5535197]
[1771766615815,0.47960103,1965.5,1964.9,0.5535197]
[1771766616017,0.49714764,1965.6,1964.9,0.5535197]
[1771766616217,0.47958323,1965.5,1964.9,0.5535197]
[1771766616418,0.49714764,1965.9,1964.9,0.5535197]
[1771766616611,6.81705942,1965.8,1964.9,0.5535197]
[1771766616815,6.81705942,1965.7,1964.9,0.5535197]
[1771766617109,0.47957465,1965.6,1964.9,0.5535197]
[1771766617418,0.49714764,1965.7,1964.9,0.5535197]
[1771766626325,0.47961779,1965.6,1964.9,0.5535197]
[1771766626526,0.5136723,1965.5,1964.9,0.5535197]
[1771766626926,0.5136723,1965.9,1964.9,0.5535197]
[1771766627227,0.5136723,1965.7,1964.9,0.5535197]
[1771766627527,0.51391221,1965.6,1964.9,0.5535197]
[1771766629027,0.51391221,1965.8,1964.9,0.5535197]
[1771766629227,0.47961885,1965.7,1964.9,0.5535197]
[1771766629427,0.51391221,1965.8,1964.9,0.5535197]
[1771766629728,0.47961492,1965.7,1964.9,0.5535197]
[1771766630027,0.51391221,1965.8,1964.9,0.5535197]
[1771766630227,0.47961965,1965.7,1964.9,0.5535197]
[1771766630427,0.51391221,1965.8,1964.9,0.5535197]
[1771766630627,0.47961559,1965.7,1964.9,0.5535197]
[1771766630830,0.51391221,1965.8,1964.9,0.5535197]
[1771766631129,0.47945549,1965.7,1964.9,0.5535197]
[1771766631329,0.51391221,1965.8,1964.9,0.5535197]
[1771766631530,0.47945578,1965.7,1964.9,0.5535197]
[1771766631722,0.51391221,1965.8,1964.9,0.5535197]
[1771766632022,0.47945532,1965.7,1964.9,0.5535197]
[1771766632224,0.51391221,1965.8,1964.9,0.5535197]
[1771766632422,0.4794651,1965.7,1964.9,0.5535197]
[1771766632630,0.51391221,1965.8,1964.9,0.5535197]
[1771766632827,0.47947521,1965.7,1964.9,0.5535197]
[1771766633031,0.51391221,1965.8,1964.9,0.5535197]
[1771766633232,0.47947361,1965.7,1964.9,0.5535197]
[1771766633434,0.51391221,1965.8,1964.9,0.5535197]
[1771766633630,0.47954311,1965.7,1964.9,0.5535197]
[1771766633836,0.51391221,1965.8,1964.9,0.5535197]
[1771766634136,0.47962834,1965.7,1964.9,0.5535197]
[1771766634335,0.51391221,1965.8,1964.9,0.5535197]
[1771766634535,0.47964157,1965.7,1964.9,0.5535197]
[1771766634736,0.51391221,1965.8,1964.9,0.5535197]
[1771766634930,0.47964157,1965.7,1964.9,0.5535197]
[1771766635235,0.51929893,1965.9,1964.9,0.5535197]
[1771766635435,0.47967371,1965.8,1964.9,0.5535197]
[1771766635636,0.51929893,1965.9,1964.9,0.5535197]
[1771766635833,0.99825967,1965.8,1964.9,0.5535197]
[1771766636137,0.51858526,1965.8,1964.9,0.5535197]
[1771766636436,0.51858526,1965.6,1964.9,0.5535197]
[1771766645040,0.51858526,1965.6,1965.0,0.54742008]
[1771766648040,0.5213107,1965.9,1965.0,0.54742008]
[1771766648241,6.35156403,1965.8,1965.1,0.55634802]
[1771766648441,0.48009033,1965.7,1965.1,0.55634802]
[1771766648643,0.5213107,1965.9,1965.1,0.55634802]
[1771766648945,6.3513858,1965.8,1965.1,0.55634802]
[1771766649143,0.48007619,1965.7,1965.1,0.55634802]
[1771766650338,0.51902803,1966.0,1965.1,0.55634802]
[1771766650537,0.48016205,1965.9,1965.2,0.55634802]
[1771766650732,0.48016205,1965.8,1965.2,0.55634802]
[1771766650944,0.51902803,1966.0,1965.2,0.55634802]
[1771766651146,0.48015985,1965.9,1965.2,0.55634802]
[1771766651343,0.48015985,1965.8,1965.2,0.55634802]
[1771766651646,0.58222185,1966.2,1965.5,0.55634802]
[1771766654542,0.55406093,1966.5,1965.5,0.55634802]
[1771766666459,0.55847678,1966.6,1965.5,0.55634802]
[1771766666857,0.55847678,1966.6,1965.6,0.54991757]
[1771766678169,0.55847678,1966.6,1965.8,0.58460542]
[1771766678366,0.00441585,1966.6,1965.8,0.58460542]
[1771766680265,0.00441585,1966.6,1965.9,0.58460542]
[1771766680871,0.55722806,1966.6,1965.9,0.58460542]
[1771766682772,0.55281221,1966.4,1965.7,0.58460542]
[1771766686074,0.55281221,1966.5,1965.7,0.58460542]
[1771766686274,0.00441585,1966.6,1965.7,0.58460542]
[1771766686275,0.55722806,1966.6,1965.7,0.58460542]
[1771766693174,0.55722806,1966.6,1965.9,0.58460542]
[1771766702693,0.00441585,1966.6,1965.9,0.58460542]
[1771766702992,0.00441585,1966.6,1966.0,0.58460542]
[1771766704389,0.55722806,1966.6,1966.0,0.58460542]
[1771766708595,0.00441585,1966.6,1966.0,0.58460542]
[1771766713406,0.5729938,1966.6,1966.0,0.58460542]
[1771766714407,0.00441585,1966.6,1966.0,0.58460542]
[1771766716804,0.00441585,1966.6,1966.0,8.58707397]
[1771766717206,0.00441585,1966.6,1966.1,0.56932601]
[1771766717807,0.59700823,1967.1,1966.2,0.56932601]
[1771766718104,1.07537029,1967.0,1966.3,0.56932601]
[1771766718304,0.59700823,1967.0,1966.3,0.56932601]
[1771766718704,0.60337075,1967.0,1966.3,0.5751323]
[1771766719310,0.00636252,1967.0,1966.3,0.5751323]
[1771766719508,0.00636252,1967.0,1966.4,0.56932601]
[1771766723203,0.59700823,1967.3,1966.5,0.56932601]
[1771766723604,0.59700823,1967.5,1966.7,0.56932601]
[1771766724014,0.59700823,1967.3,1966.6,0.56932601]
[1771766724411,0.60122225,1967.3,1966.6,0.56932601]
[1771766724709,0.60122225,1967.3,1966.4,0.56932601]
[1771766725012,0.59700823,1967.1,1966.4,0.56932601]
[1771766725412,0.59700823,1967.1,1966.3,0.00580629]
[1771766726505,0.59700823,1967.1,1966.3,0.5751323]
[1771766727314,0.59700823,1966.9,1966.3,0.5751323]
[1771766732616,0.59700823,1966.9,1966.3,0.00580629]
[1771766739623,0.55135016,1966.7,1966.3,0.00580629]
[1771766740718,0.55135016,1966.7,1966.0,0.57640504]
[1771766741824,0.55135016,1966.7,1966.0,0.58288462]
[1771766746532,0.55135016,1966.7,1966.1,0.57640504]
[1771766754239,0.55135016,1966.7,1966.2,0.57640504]
[1771766755438,0.55135016,1966.9,1966.2,0.57640504]
[1771766755639,0.55135016,1966.9,1966.3,0.57640504]
[1771766785063,0.54527474,1967.1,1966.3,0.57640504]
[1771766785260,0.47881639,1967.0,1966.4,0.57183684]
[1771766785459,0.54527474,1967.1,1966.4,0.57183684]
[1771766785659,0.47879664,1967.0,1966.4,0.57183684]
[1771766785863,0.54527474,1967.0,1966.4,0.57183684]
[1771766786466,0.47878232,1966.9,1966.3,8.57430539]
[1771766786662,0.54527474,1966.7,1966.3,0.57183684]
[1771766786868,0.54527474,1966.7,1966.0,0.00647958]
[1771766786869,0.54527474,1966.7,1966.1,8.57430539]
[1771766787066,0.54527474,1966.7,1966.1,0.57183684]
[1771766793361,0.54527474,1966.7,1966.0,0.57831642]
[1771766795365,0.54527474,1966.5,1966.0,0.57831642]
[1771766804377,0.57150361,1967.0,1966.0,0.57831642]
[1771766804578,0.57150361,1966.8,1966.0,0.57831642]
[1771766807582,0.57150361,1967.2,1966.1,0.59488172]
[1771766807780,0.57150361,1967.0,1966.1,0.59488172]
[1771766816184,0.47813166,1966.9,1966.1,0.59488172]
[1771766816382,0.57150361,1966.8,1966.1,0.59488172]
[1771766816985,0.57150361,1966.8,1966.2,0.59488172]
[1771766832497,4.2689204,1967.2,1966.2,0.59488172]
[1771766832700,0.57660322,1966.9,1966.2,0.59488172]
[1771766838204,0.47861744,1966.8,1966.2,0.59488172]
[1771766838397,0.57660322,1966.9,1966.2,0.59488172]
[1771766838598,0.47861744,1966.8,1966.2,0.59488172]
[1771766838798,0.57660322,1966.9,1966.2,0.59488172]
[1771766838998,0.47861744,1966.8,1966.2,0.59488172]
[1771766839197,0.57660322,1966.9,1966.2,0.59488172]
[1771766839402,0.47863129,1966.8,1966.2,0.59488172]
[1771766839701,0.57660322,1966.9,1966.2,0.59488172]
[1771766839905,0.47863134,1966.8,1966.2,0.59488172]
[1771766840103,0.57660322,1966.9,1966.2,0.59488172]
[1771766840304,0.47863735,1966.8,1966.2,0.59488172]
[1771766840509,0.57660322,1966.9,1966.2,0.59488172]
[1771766840702,0.47864625,1966.8,1966.2,0.59488172]
[1771766840903,0.57660322,1966.9,1966.2,0.59488172]
[1771766841106,0.47864618,1966.8,1966.2,0.59488172]
[1771766841400,0.57660322,1966.9,1966.2,8.59735027]
[1771766841705,0.57660322,1966.9,1966.3,0.55027853]
[1771766848904,0.57660322,1966.9,1966.1,8.00246855]
[1771766849108,0.59120174,1966.7,1966.0,0.55675811]
[1771766865129,0.58975678,1966.5,1966.0,0.55675811]
[1771766869830,0.58975678,1966.7,1966.0,0.55675811]
[1771766870031,0.47814747,1966.6,1966.0,0.55675811]
[1771766870230,0.58975678,1966.7,1966.0,0.55675811]
[1771766870432,1.0679167,1966.6,1966.0,0.55675811]
[1771766870734,0.58975678,1966.6,1966.0,0.55675811]
[1771766873334,0.58975678,1966.9,1966.0,0.55675811]
[1771766873537,0.58975678,1966.7,1966.0,0.55675811]
[1771766877141,0.47855736,1966.6,1966.0,0.55675811]
[1771766877439,0.58975678,1966.6,1966.0,0.55675811]
[1771766890653,0.55905321,1966.4,1966.0,0.55675811]
[1771766892152,0.55905321,1966.4,1966.0,0.00647958]
[1771766892350,0.55905321,1966.2,1965.5,0.59143282]
[1771766892652,0.55905321,1966.0,1965.4,0.59143282]
[1771766892844,0.55905321,1966.0,1965.2,8.00246855]
[1771766893044,4.5232404,1966.6,1965.2,0.59143282]
[1771766893045,0.55905321,1965.8,1965.2,0.59143282]
[1771766893546,0.55905321,1965.8,1965.2,0.5968346]
[1771766893547,0.56432467,1965.8,1965.2,0.5968346]
[1771766894456,0.56432467,1965.8,1965.2,0.00540178]
[1771766900656,0.56432467,1965.8,1964.8,0.56516761]
[1771766901756,0.56432467,1965.8,1964.8,0.56879676]
[1771766917263,0.56699642,1965.8,1965.0,0.56516761]
[1771766920366,0.59638643,1965.6,1965.0,0.56516761]
[1771766922871,0.60165789,1965.8,1965.0,0.56516761]
[1771766923169,0.47791673,1965.7,1965.0,0.56516761]
[1771766923368,0.60165789,1965.8,1965.0,0.56516761]
[1771766927174,0.60165789,1965.8,1965.1,0.55414578]
[1771766927375,0.00527146,1965.8,1965.1,0.55414578]
[1771766927876,0.60165789,1965.8,1965.1,0.55414578]
[1771766929670,0.00527146,1965.8,1965.1,0.55414578]
[1771766930876,0.60165789,1965.8,1965.1,0.55414578]
[1771766946194,0.60165789,1965.8,1965.2,0.55414578]
[1771766948095,0.00527146,1965.8,1965.2,0.55414578]
[1771766949594,0.56800955,1965.8,1965.2,0.55414578]
[1771766949799,0.56800955,1965.8,1965.0,8.60171076]
[1771766950001,0.56800955,1965.8,1965.1,0.59924221]
[1771766951500,0.56273809,1965.6,1965.1,0.59924221]
[1771766957205,0.59978302,1965.8,1965.1,0.59924221]
[1771766957408,0.47901765,1965.7,1965.1,0.59924221]
[1771766957606,0.59978302,1965.8,1965.1,0.59924221]
[1771766957806,1.07353011,1965.7,1965.1,0.59924221]
[1771766958007,0.59451156,1965.7,1965.1,0.59924221]
[1771766965604,0.59451156,1965.7,1965.0,8.59412796]
[1771766965804,0.59451156,1965.5,1964.8,0.59528856]
[1771766966012,0.59451156,1965.3,1964.8,0.59528856]
[1771766966609,0.59451156,1965.3,1964.8,0.00362915]
[1771766967311,0.59451156,1965.3,1964.6,5.46139347]
[1771766968211,4.26856901,1965.8,1964.6,0.59165941]
[1771766968212,0.59451156,1965.1,1964.6,0.59165941]
[1771766968413,0.59451156,1965.1,1964.6,0.59810154]
[1771766970707,0.59451156,1965.1,1964.6,0.00644213]
[1771766970910,0.59451156,1965.1,1964.6,0.59810154]
[1771766972010,0.59451156,1965.1,1964.3,0.59165941]
[1771766972909,0.59451156,1964.9,1963.9,0.59165941]
[1771766973114,0.59451156,1964.9,1963.9,0.59755386]
[1771766973317,0.59451156,1964.9,1964.0,0.59165941]
[1771766977518,0.59451156,1965.4,1964.2,0.59165941]
[1771766977718,0.59451156,1965.2,1964.2,0.59165941]
[1771766980723,0.56631266,1965.3,1964.4,0.55542741]
[1771766986628,0.56631266,1965.3,1963.9,6.38089445]
[1771766986824,0.56631266,1965.3,1964.0,0.55542741]
[1771766987427,0.4772209,1965.2,1964.2,0.55542741]
[1771766987625,0.56631266,1965.1,1964.2,0.55542741]
[1771766995332,0.56631266,1964.9,1964.2,0.55542741]
[1771766995631,0.56631266,1965.2,1964.3,0.55542741]
[1771766995836,7.95745107,1965.7,1964.3,0.55542741]
[1771766995837,0.56631266,1965.3,1964.6,0.55542741]
[1771767003648,0.56631266,1965.1,1964.4,0.55542741]
[1771767005048,0.56631266,1964.9,1964.2,0.55542741]
[1771767012852,0.55185678,1965.2,1964.2,0.55542741]
[1771767013148,0.55185678,1965.0,1964.2,0.55542741]
[1771767015454,0.56848441,1965.4,1964.2,0.55542741]
[1771767015654,0.56848441,1965.2,1964.2,0.55542741]
[1771767020961,0.56848441,1965.2,1964.3,0.5730521]
[1771767024567,0.56848441,1965.2,1964.4,0.5730521]
[1771767029470,0.56848441,1965.2,1964.5,0.5730521]
[1771767033474,0.56848441,1965.2,1964.6,0.5730521]
[1771767039780,0.55015569,1965.3,1964.8,0.54902892]
[1771767039981,0.55015569,1965.3,1964.7,0.25456]
[1771767039982,0.55015569,1965.7,1965.0,0.54902892]
[1771767041080,0.55015569,1965.7,1964.8,7.97818822]
[1771767041381,0.47760169,1965.6,1964.7,8.52721714]
[1771767041682,0.55015569,1965.5,1964.8,0.54902892]
[1771767063402,0.55015569,1965.3,1964.5,8.52721714]
[1771767063607,6.333,1965.7,1964.4,0.54902892]
[1771767063608,0.55015569,1965.1,1964.4,0.54902892]
[1771767066815,0.55015569,1965.5,1964.4,0.54902892]
[1771767067006,0.55015569,1965.3,1964.4,0.54902892]
[1771767075317,0.56392676,1965.1,1964.4,0.54902892]
[1771767088726,0.56392676,1965.3,1964.4,0.54902892]
[1771767088929,1.04245191,1965.2,1964.4,0.54902892]
[1771767089129,0.56392676,1965.2,1964.4,0.54902892]
[1771767092232,0.47877414,1965.1,1964.4,0.54902892]
[1771767092433,0.56392676,1965.2,1964.4,0.54902892]
[1771767092733,0.47877414,1965.1,1964.4,0.54902892]
[1771767092933,0.56392676,1965.2,1964.4,0.54902892]
[1771767093134,0.47877416,1965.1,1964.4,0.54902892]
[1771767093335,0.56392676,1965.2,1964.4,0.54902892]
[1771767093734,0.56392676,1965.6,1964.6,0.59144451]
[1771767093933,0.56392676,1965.4,1964.7,0.59144451]
[1771767094237,0.47887542,1965.3,1964.7,0.59144451]
[1771767094439,0.56392676,1965.5,1964.8,0.59144451]
[1771767100151,0.00527146,1965.8,1964.8,0.59144451]
[1771767100348,0.00527146,1965.8,1965.0,0.58654565]
[1771767100550,0.58517737,1965.8,1965.0,0.58654565]
[1771767100752,0.58517737,1965.8,1965.1,0.58654565]
[1771767103250,0.00527146,1965.8,1965.1,0.58654565]
[1771767105048,0.58517737,1965.8,1965.1,0.58654565]
[1771767106052,0.00527146,1965.8,1965.1,0.58654565]
[1771767109052,0.00527146,1965.8,1965.2,0.58654565]
[1771767111555,0.58517737,1965.8,1965.2,0.58654565]
[1771767114860,0.58517737,1965.8,1965.0,0.58654565]
[1771767115060,0.58517737,1965.8,1964.9,0.58654565]
[1771767115262,0.58517737,1965.8,1964.5,0.58654565]
[1771767115663,0.58517737,1965.8,1964.6,0.58654565]
[1771767116163,0.57990591,1965.6,1964.3,0.58654565]
[1771767116351,0.25449,1965.3,1964.0,0.58654565]
[1771767116552,0.57990591,1965.0,1963.6,0.58654565]
[1771767116752,0.57990591,1964.8,1963.6,0.58654565]
[1771767116962,0.57990591,1964.6,1963.6,0.58654565]
[1771767117563,0.57990591,1964.6,1963.6,0.59270319]
[1771767117866,0.57990591,1964.4,1963.6,0.00615754]
[1771767118163,0.58588394,1964.4,1963.6,0.00615754]
[1771767119463,0.58588394,1964.4,1963.6,0.59270319]
[1771767131879,0.00597803,1964.4,1963.6,0.59270319]
[1771767132979,0.60651313,1964.4,1963.6,0.59270319]
[1771767133880,0.00597803,1964.4,1963.6,0.59270319]
[1771767134981,0.55550435,1964.7,1963.6,0.59270319]
[1771767135981,0.56061408,1964.7,1963.6,0.59270319]
[1771767136883,0.56061408,1964.7,1963.8,0.55156004]
[1771767139585,0.55550435,1964.9,1964.0,0.55156004]
[1771767139780,0.55550435,1965.6,1964.2,0.55156004]
[1771767140274,0.55550435,1965.4,1964.2,0.55156004]
[1771767140680,0.55550435,1965.4,1963.6,8.0112855]
[1771767140681,4.24983833,1965.2,1963.6,0.00615754]
[1771767140879,0.25456,1964.8,1963.6,0.61117061]
[1771767141183,0.4745592,1964.7,1963.6,0.61117061]
[1771767141373,0.25456,1964.8,1963.6,0.61117061]
[1771767141578,0.47454897,1964.7,1963.6,0.61117061]
[1771767141885,0.25456,1964.8,1963.6,0.61117061]
[1771767142085,6.33559092,1964.7,1963.6,0.61117061]
[1771767142385,0.47446607,1964.6,1963.6,0.61117061]
[1771767142684,0.00662588,1964.5,1963.6,0.61117061]
[1771767144178,0.25463,1964.2,1963.0,0.6047789]
[1771767144385,6.35539484,1964.1,1963.0,0.6047789]
[1771767144585,6.35539484,1964.0,1963.0,0.6047789]
[1771767144786,0.47600349,1963.9,1963.0,0.6047789]
[1771767144988,0.25463,1964.2,1963.0,0.6047789]
[1771767145287,6.35193387,1964.1,1963.0,0.61049326]
[1771767145487,6.35193387,1964.0,1963.0,0.61049326]
[1771767145686,0.47582497,1963.9,1963.0,0.61049326]
[1771767145887,40.8,1964.1,1963.0,0.61049326]
[1771767146088,6.35596721,1964.0,1963.0,0.61049326]
[1771767146289,0.47616525,1963.9,1963.0,0.61049326]
[1771767146483,40.8,1964.1,1963.0,0.61049326]
[1771767146688,6.35535062,1964.0,1963.0,0.00571436]
[1771767146895,6.35535062,1963.9,1963.0,0.00571436]
[1771767147188,0.47613264,1963.8,1963.0,0.00571436]
[1771767147387,40.8,1964.1,1963.0,0.00571436]
[1771767147587,6.35209194,1964.0,1963.0,0.00571436]
[1771767147787,0.47585103,1963.9,1963.0,0.00571436]
[1771767147982,0.47585103,1963.8,1963.0,0.00571436]
[1771767148189,40.8,1964.1,1963.0,0.00571436]
[1771767148390,6.35062097,1964.0,1963.0,0.00571436]
[1771767148591,10.8551293,1963.9,1962.7,0.61698841]
[1771767148787,6.35062097,1963.8,1962.7,0.61698841]
[1771767149084,6.35062097,1963.7,1962.5,0.61698841]
[1771767149290,0.47560522,1963.6,1962.5,0.61698841]
[1771767149492,4.50450833,1963.9,1962.5,0.62194376]
[1771767149789,6.34498971,1963.8,1962.5,0.62194376]
[1771767149989,6.34498971,1963.7,1962.5,0.62194376]
[1771767150191,0.4752862,1963.6,1962.5,0.62194376]
[1771767150388,0.25467,1963.9,1962.5,0.62194376]
[1771767150691,0.47502996,1963.8,1962.5,0.62194376]
[1771767150991,6.3418141,1963.7,1962.5,0.62194376]
[1771767151190,0.47502996,1963.6,1962.5,0.62194376]
[1771767151391,4.50450833,1963.9,1962.5,0.62194376]
[1771767151690,6.33912232,1963.8,1962.5,0.62194376]
[1771767151884,6.33912232,1963.7,1962.5,0.62194376]
[1771767152087,0.47476054,1963.6,1962.5,0.62194376]